fUSD/lending_fUSD_20240619
["ID","MTS","AMOUNT","RATE_DAILY","PERIOD"]
[329862762,1718771437999,-83239.27032354,0.00013697,2]
[329862763,1718771438010,-2658.89648734,0.00013697,2]
[329862764,1718771438021,-6571.4,0.00013697,2]
[329862765,1718771438125,-1026.6570653,0.00013697,2]
[329862766,1718771438137,-5629.96734332,0.00013697,2]
[329862767,1718771438148,-727.3743122,0.00013697,2]
[329862769,1718771438159,-326654.78334507,0.00013697,2]
[329862770,1718771438168,-500.0,0.00013698,2]
[329862771,1718771438178,-500.0,0.00013698,2]
[329862772,1718771438188,-500.0,0.00013698,2]
[329862773,1718771438197,-545.38642868,0.00013698,2]
[329862774,1718771438206,-500.0,0.00013698,2]
[329862775,1718771438215,-500.0,0.00013698,2]
[329862776,1718771438225,-501.46473756,0.00013698,2]
[329862777,1718771438234,-500.0,0.00013698,2]
[329862778,1718771438244,-500.0,0.00013698,2]
[329862779,1718771438253,-517.50552802,0.00013698,2]
[329862780,1718771438262,-500.0,0.00013698,2]
[329862781,1718771438272,-528.16998257,0.00013698,2]
[329862782,1718771438281,-500.0,0.00013698,2]
[329862783,1718771438290,-509.39033186,0.00013698,2]
[329862784,1718771438300,-500.0,0.00013698,2]
[329862785,1718771438309,-500.0,0.00013698,2]
[329862786,1718771438319,-500.0,0.00013698,2]
[329862787,1718771438329,-620.70916445,0.00013698,2]
[329862788,1718771438338,-500.0,0.00013698,2]
[329862789,1718771438347,-633.76310359,0.00013698,2]
[329862790,1718771438357,-499.19705984,0.00013698,2]
[329862791,1718771438370,-200.0,0.00013698,2]
[329862792,1718771438379,-326.2648502,0.00013698,2]
[329862793,1718771438388,-500.0,0.00013698,2]
[329862794,1718771438401,-500.0,0.00013698,2]
[329862795,1718771438411,-414.48538579,0.00013698,2]
[329862796,1718771438420,-500.0,0.00013698,2]
[329862797,1718771438437,-457.42348876,0.00013698,2]
[329862798,1718771438450,-511.60431526,0.00013698,2]
[329862799,1718771438459,-517.1581859,0.00013698,2]
[329862800,1718771438469,-451.83570078,0.00013698,2]
[329862801,1718771438480,-1328.28,0.00013698,2]
[329862802,1718771438490,-500.0,0.00013698,2]
[329862803,1718771438500,-660.3,0.00013698,2]
[329862804,1718771438509,-500.0,0.00013698,2]
[329862805,1718771438872,-500.0,0.00013698,2]
[329862806,1718771438882,-500.0,0.00013698,2]
[329862807,1718771438892,-500.0,0.00013698,2]
[329862808,1718771438901,-500.0,0.00013698,2]
[329862809,1718771438911,-563.42900233,0.00013698,2]
[329862810,1718771438921,-500.0,0.00013698,2]
[329862811,1718771438930,-595.28982268,0.00013698,2]
[329862812,1718771438945,-1584.43,0.00013698,2]
[329862813,1718771438955,-500.0,0.00013698,2]
[329862814,1718771438965,-565.12437335,0.00013698,2]
[329862815,1718771438975,-500.0,0.00013698,2]
[329862816,1718771438985,-535.87,0.00013698,2]
[329862817,1718771438996,-982.17,0.00013698,2]
[329862818,1718771439006,-500.0,0.00013698,2]
[329862819,1718771439016,-276.33126657,0.00013698,2]
[329862820,1718771439025,-500.0,0.00013698,2]
[329862821,1718771439035,-500.0,0.00013698,2]
[329862822,1718771439046,-756.25,0.00013698,2]
[329862823,1718771439056,-1107.86,0.00013698,2]
[329862824,1718771439066,-534.44056394,0.00013698,2]
[329862825,1718771439076,-500.0,0.00013698,2]
[329862826,1718771439086,-522.19531377,0.00013698,2]
[329862827,1718771439096,-500.0,0.00013698,2]
[329862828,1718771439107,-500.0,0.00013698,2]
[329862829,1718771439122,-500.0,0.00013698,2]
[329862830,1718771439132,-500.0,0.00013698,2]
[329862831,1718771439142,-500.0,0.00013698,2]
[329862832,1718771439153,-508.90078812,0.00013698,2]
[329862833,1718771439163,-500.0,0.00013698,2]
[329862834,1718771439174,-1210.0,0.00013698,2]
[329862835,1718771439184,-500.0,0.00013698,2]
[329862836,1718771439195,-500.0,0.00013698,2]
[329862837,1718771439205,-500.0,0.00013698,2]
[329862838,1718771439215,-500.0,0.00013698,2]
[329862839,1718771439225,-511.27793556,0.00013698,2]
[329862840,1718771439235,-506.02455864,0.00013698,2]
[329862841,1718771439245,-500.0,0.00013698,2]
[329862842,1718771439255,-660.85,0.00013698,2]
[329862843,1718771439265,-508.09,0.00013698,2]
[329862844,1718771439275,-904.44,0.00013698,2]
[329862845,1718771439284,-509.61664746,0.00013698,2]
[329862846,1718771439294,-500.0,0.00013698,2]
[329862847,1718771439304,-500.0,0.00013698,2]
[329862848,1718771439314,-500.0,0.00013698,2]
[329862849,1718771439326,-500.0,0.00013698,2]
[329862850,1718771439336,-500.0,0.00013698,2]
[329862851,1718771439346,-1144.71,0.00013698,2]
[329862852,1718771439358,-591.00168752,0.00013698,2]
[329862853,1718771439370,-500.0,0.00013698,2]
[329862854,1718771439380,-639.4,0.00013698,2]
[329862855,1718771439390,-937.86,0.00013698,2]
[329862856,1718771439405,-500.0,0.00013698,2]
[329862857,1718771439415,-500.0,0.00013698,2]
[329862858,1718771439425,-500.0,0.00013698,2]
[329862859,1718771439434,-592.91806253,0.00013698,2]
[329862860,1718771439446,-500.0,0.00013698,2]
[329862861,1718771439456,-500.0,0.00013698,2]
[329862862,1718771439466,-500.0,0.00013698,2]
[329862863,1718771439476,-500.0,0.00013698,2]
[329862864,1718771439488,-500.0,0.00013698,2]
[329862865,1718771439500,-760.2,0.00013698,2]
[329862866,1718771439510,-500.0,0.00013698,2]
[329862867,1718771439521,-500.0,0.00013698,2]
[329862868,1718771439531,-500.0,0.00013698,2]
[329862869,1718771439541,-500.0,0.00013698,2]
[329862870,1718771439551,-748.19,0.00013698,2]
[329862872,1718771439562,-500.0,0.00013698,2]
[329862873,1718771439574,-500.0,0.00013698,2]
[329862874,1718771439584,-800.32,0.00013698,2]
[329862875,1718771439594,-516.02017524,0.00013698,2]
[329862876,1718771439604,-500.0,0.00013698,2]
[329862877,1718771439617,-500.0,0.00013698,2]
[329862878,1718771439627,-500.0,0.00013698,2]
[329862879,1718771439637,-500.0,0.00013698,2]
[329862880,1718771439648,-500.0,0.00013698,2]
[329862881,1718771439658,-500.0,0.00013698,2]
[329862882,1718771439668,-318.3320229,0.00013698,2]
[329862883,1718771439678,-500.0,0.00013698,2]
[329862884,1718771439688,-500.0,0.00013698,2]
[329862886,1718771439698,-500.0,0.00013698,2]
[329862887,1718771439708,-500.0,0.00013698,2]
[329862888,1718771439719,-500.0,0.00013698,2]
[329862889,1718771439729,-500.0,0.00013698,2]
[329862890,1718771439738,-500.0,0.00013698,2]
[329862891,1718771439748,-500.0,0.00013698,2]
[329862892,1718771439758,-500.0,0.00013698,2]
[329862893,1718771439768,-500.0,0.00013698,2]
[329862894,1718771439778,-500.0,0.00013698,2]
[329862895,1718771439788,-920.26,0.00013698,2]
[329862896,1718771439797,-500.0,0.00013698,2]
[329862897,1718771439807,-716.94,0.00013698,2]
[329862898,1718771439817,-707.11,0.00013698,2]
[329862899,1718771439827,-500.0,0.00013698,2]
[329862900,1718771439836,-500.0,0.00013698,2]
[329862901,1718771439846,-500.0,0.00013698,2]
[329862902,1718771439856,-629.45,0.00013698,2]
[329862903,1718771439868,-500.0,0.00013698,2]
[329862904,1718771439878,-500.0,0.00013698,2]
[329862905,1718771439888,-283.36922688,0.00013698,2]
[329862906,1718771439898,-500.0,0.00013698,2]
[329862907,1718771439908,-500.0,0.00013698,2]
[329862908,1718771439918,-500.0,0.00013698,2]
[329862909,1718771439927,-500.0,0.00013698,5]
[329862910,1718771439937,-500.0,0.00013698,2]
[329862911,1718771439946,-500.0,0.00013698,2]
[329862912,1718771439956,-500.0,0.00013698,2]
[329862913,1718771439966,-500.0,0.00013698,2]
[329862914,1718771439976,-250.0,0.00013698,2]
[329862915,1718771439987,-500.0,0.00013698,2]
[329862916,1718771439996,-500.0,0.00013698,2]
[329862917,1718771440006,-800.25,0.00013698,2]
[329862918,1718771440016,-500.0,0.00013698,2]
[329862919,1718771440026,-500.0,0.00013698,2]
[329862920,1718771440036,-500.0,0.00013698,2]
[329862921,1718771440046,-502.64799119,0.00013698,2]
[329862922,1718771440056,-500.0,0.00013698,2]
[329862923,1718771440065,-536.89322548,0.00013698,2]
[329862924,1718771440075,-537.40975545,0.00013698,2]
[329862925,1718771440085,-637.28656476,0.00013698,2]
[329862926,1718771440095,-500.0,0.00013698,2]
[329862927,1718771440104,-500.0,0.00013698,2]
[329862928,1718771440116,-733.22,0.00013698,2]
[329862929,1718771440125,-500.0,0.00013698,2]
[329862930,1718771440134,-500.0,0.00013698,2]
[329862931,1718771440144,-864.88,0.00013698,2]
[329862932,1718771440155,-500.0,0.00013698,2]
[329862933,1718771440164,-855.08,0.00013698,2]
[329862934,1718771440174,-510.90103492,0.00013698,2]
[329862935,1718771440184,-500.0,0.00013698,2]
[329862936,1718771440194,-500.0,0.00013698,2]
[329862937,1718771440204,-679.34,0.00013698,2]
[329862938,1718771440213,-500.0,0.00013698,2]
[329862939,1718771440223,-500.0,0.00013698,2]
[329862940,1718771440233,-500.0,0.00013698,2]
[329862941,1718771440243,-500.0,0.00013698,2]
[329862942,1718771440253,-500.0,0.00013698,2]
[329862943,1718771440262,-1027.18,0.00013698,2]
[329862944,1718771440272,-575.22096272,0.00013698,2]
[329862945,1718771440282,-500.0,0.00013698,2]
[329862946,1718771440292,-500.0,0.00013698,2]
[329862947,1718771440302,-500.0,0.00013698,2]
[329862948,1718771440312,-500.0,0.00013698,2]
[329862949,1718771440322,-510.19464161,0.00013698,2]
[329862950,1718771440332,-500.0,0.00013698,2]
[329862951,1718771440342,-1368.17,0.00013698,2]
[329862952,1718771440352,-500.0,0.00013698,2]
[329862953,1718771440363,-500.0,0.00013698,2]
[329862955,1718771440373,-500.0,0.00013698,2]
[329862956,1718771440383,-1147.18,0.00013698,2]
[329862957,1718771440393,-500.0,0.00013698,2]
[329862958,1718771440404,-1287.39,0.00013698,2]
[329862959,1718771440416,-500.0,0.00013698,2]
[329862961,1718771440425,-544.27,0.00013698,2]
[329862962,1718771440435,-332.83311355,0.00013698,2]
[329862963,1718771440476,-167.16688645,0.00013698,2]
[329862964,1718771440491,-500.0,0.00013698,2]
[329862965,1718771440501,-500.0,0.00013698,2]
[329862966,1718771440510,-392.08733622,0.00013698,2]
[329862967,1718771440520,-500.0,0.00013698,2]
[329862968,1718771440530,-711.55,0.00013698,2]
[329862969,1718771440540,-500.0,0.00013698,2]
[329862970,1718771440550,-500.0,0.00013698,2]
[329862971,1718771440561,-676.76,0.00013698,2]
[329862972,1718771440571,-576.46,0.00013698,2]
[329862973,1718771440581,-500.0,0.00013698,2]
[329862974,1718771440591,-500.0,0.00013698,2]
[329862975,1718771440600,-710.68,0.00013698,2]
[329862976,1718771440613,-500.0,0.00013698,2]
[329862977,1718771440623,-500.0,0.00013698,2]
[329862978,1718771440633,-500.0,0.00013698,2]
[329862979,1718771440643,-500.0,0.00013698,2]
[329862980,1718771440653,-529.81131789,0.00013698,2]
[329862981,1718771440663,-500.0,0.00013698,2]
[329862982,1718771440673,-500.0,0.00013698,2]
[329862983,1718771440683,-500.0,0.00013698,2]
[329862984,1718771440693,-500.0,0.00013698,2]
[329862985,1718771440703,-500.0,0.00013698,2]
[329862986,1718771440712,-500.0,0.00013698,2]
[329862987,1718771440722,-969.63,0.00013698,2]
[329862988,1718771440732,-328.8841158,0.00013698,2]
[329862989,1718771440778,-329.5158842,0.00013698,2]
[329862990,1718771440788,-500.0,0.00013698,2]
[329862991,1718771440798,-500.0,0.00013698,2]
[329862992,1718771440808,-500.0,0.00013698,2]
[329862993,1718771440818,-550.4102879,0.00013698,2]
[329862994,1718771440828,-501.48958171,0.00013698,2]
[329862995,1718771440838,-500.0,0.00013698,2]
[329862996,1718771440850,-500.0,0.00013698,2]
[329862997,1718771440860,-214.92806028,0.00013698,2]
[329862998,1718771440870,-500.0,0.00013698,2]
[329862999,1718771440880,-500.0,0.00013698,2]
[329863000,1718771440889,-157.66304786,0.00013698,2]
[329863001,1718771440899,-386.51920167,0.00013698,2]
[329863002,1718771440920,-168.93189627,0.00013698,2]
[329863003,1718771440930,-488.36810373,0.00013698,2]
[329863004,1718771440942,-20.95924957,0.00013698,2]
[329863005,1718771440953,-281.8235328,0.00013698,2]
[329863006,1718771440965,-218.1764672,0.00013698,2]
[329863007,1718771440974,-500.0,0.00013698,2]
[329863008,1718771440984,-500.0,0.00013698,2]
[329863009,1718771440994,-160.32490991,0.00013698,2]
[329863010,1718771441006,-581.69509009,0.00013698,2]
[329863011,1718771441016,-37.64690994,0.00013698,2]
[329863012,1718771441028,-841.30346,0.00013698,2]
[329863013,1718771441694,-362.25963006,0.00013698,2]
[329863014,1718771441705,-500.0,0.00013698,2]
[329863015,1718771441715,-500.0,0.00013698,2]
[329863016,1718771441725,-586.36,0.00013698,2]
[329863017,1718771441735,-500.0,0.00013698,2]
[329863018,1718771441745,-500.0,0.00013698,2]
[329863019,1718771441755,-500.0,0.00013698,2]
[329863020,1718771441764,-630.45,0.00013698,2]
[329863021,1718771441773,-500.0,0.00013698,2]
[329863022,1718771441783,-96.79021583,0.00013698,2]
[329863023,1718771441886,-403.20978417,0.00013698,2]
[329863024,1718771441896,-500.0,0.00013698,2]
[329863025,1718771441906,-278.47021583,0.00013698,2]
[329863026,1718771441934,-221.52978417,0.00013698,2]
[329863027,1718771441944,-486.97521583,0.00013698,2]
[329863028,1718771441955,-13.02478417,0.00013698,2]
[329863029,1718771441966,-500.0,0.00013698,2]
[329863030,1718771441975,-503.80357668,0.00013698,2]
[329863031,1718771441985,-442.8587167,0.00013698,2]
[329863032,1718771442027,-57.1412833,0.00013698,2]
[329863033,1718771442036,-500.0,0.00013698,2]
[329863034,1718771442046,-500.0,0.00013698,2]
[329863035,1718771442056,-500.0,0.00013698,2]
[329863036,1718771442066,-500.0,0.00013698,2]
[329863037,1718771442076,-500.0,0.00013698,2]
[329863038,1718771442086,-500.0,0.00013698,2]
[329863039,1718771442095,-500.0,0.00013698,2]
[329863040,1718771442105,-500.0,0.00013698,2]
[329863041,1718771442115,-500.0,0.00013698,2]
[329863042,1718771442125,-219.57360281,0.00013698,2]
[329863043,1718771442134,-500.0,0.00013698,2]
[329863044,1718771442146,-500.0,0.00013698,2]
[329863045,1718771442156,-500.57978618,0.00013698,2]
[329863046,1718771442165,-500.0,0.00013698,2]
[329863047,1718771442175,-500.0,0.00013698,2]
[329863048,1718771442185,-1253.05,0.00013698,2]
[329863049,1718771442196,-626.18,0.00013698,2]
[329863050,1718771442207,-961.8,0.00013698,2]
[329863051,1718771442216,-500.0,0.00013698,2]
[329863052,1718771442225,-500.0,0.00013698,2]
[329863053,1718771442234,-500.0,0.00013698,2]
[329863054,1718771442244,-500.0,0.00013698,2]
[329863055,1718771442254,-761.72,0.00013698,2]
[329863056,1718771442264,-500.0,0.00013698,2]
[329863057,1718771442274,-500.0,0.00013698,2]
[329863058,1718771442283,-500.0,0.00013698,2]
[329863059,1718771442293,-812.35,0.00013698,2]
[329863060,1718771442305,-500.0,0.00013698,2]
[329863061,1718771442315,-947.45,0.00013698,2]
[329863062,1718771442325,-500.0,0.00013698,2]
[329863063,1718771442335,-500.0,0.00013698,2]
[329863064,1718771442344,-505.45177853,0.00013698,2]
[329863065,1718771442354,-500.0,0.00013698,2]
[329863066,1718771442365,-500.0,0.00013698,2]
[329863067,1718771442374,-500.0,0.00013698,2]
[329863068,1718771442384,-568.9,0.00013698,2]
[329863069,1718771442394,-500.0,0.00013698,2]
[329863070,1718771442405,-500.0,0.00013698,2]
[329863071,1718771442416,-500.0,0.00013698,2]
[329863072,1718771442425,-500.0,0.00013698,2]
[329863073,1718771442435,-500.0,0.00013698,2]
[329863074,1718771442444,-500.0,0.00013698,2]
[329863075,1718771442455,-179.12379526,0.00013698,2]
[329863076,1718771442464,-330.69318987,0.00013698,2]
[329863077,1718771442474,-500.0,0.00013698,2]
[329863078,1718771442485,-500.0,0.00013698,2]
[329863079,1718771442495,-547.44,0.00013698,2]
[329863080,1718771442506,-500.0,0.00013698,2]
[329863081,1718771442517,-500.0,0.00013698,2]
[329863082,1718771442527,-546.95,0.00013698,2]
[329863083,1718771442537,-501.18472457,0.00013698,2]
[329863084,1718771442547,-500.0,0.00013698,2]
[329863085,1718771442557,-503.22631803,0.00013698,2]
[329863086,1718771442567,-500.0,0.00013698,2]
[329863087,1718771442577,-500.0,0.00013698,2]
[329863088,1718771442588,-500.0,0.00013698,2]
[329863089,1718771442599,-500.0,0.00013698,2]
[329863090,1718771442610,-500.0,0.00013698,2]
[329863091,1718771442621,-500.0,0.00013698,2]
[329863093,1718771442633,-586.85,0.00013698,2]
[329863095,1718771442643,-500.0,0.00013698,2]
[329863097,1718771442652,-500.0,0.00013698,2]
[329863099,1718771442662,-504.33343904,0.00013698,2]
[329863101,1718771442672,-500.0,0.00013698,2]
[329863103,1718771442681,-500.0,0.00013698,2]
[329863105,1718771442692,-500.0,0.00013698,2]
[329863107,1718771442701,-500.0,0.00013698,2]
[329863109,1718771442712,-1125.48,0.00013698,2]
[329863111,1718771442722,-500.0,0.00013698,2]
[329863114,1718771442732,-500.0,0.00013698,2]
[329863117,1718771442742,-500.0,0.00013698,2]
[329863120,1718771442752,-500.0,0.00013698,2]
[329863123,1718771442761,-784.38,0.00013698,2]
[329863126,1718771442771,-500.0,0.00013698,2]
[329863130,1718771442780,-500.0,0.00013698,2]
[329863132,1718771442790,-500.0,0.00013698,2]
[329863135,1718771442799,-500.0,0.00013698,2]
[329863138,1718771442808,-500.0,0.00013698,2]
[329863141,1718771442818,-1009.17,0.00013698,2]
[329863143,1718771442827,-500.0,0.00013698,2]
[329863145,1718771442837,-500.0,0.00013698,2]
[329863147,1718771442846,-500.0,0.00013698,2]
[329863149,1718771442856,-500.0,0.00013698,2]
[329863152,1718771442867,-500.0,0.00013698,2]
[329863154,1718771442876,-500.0,0.00013698,2]
[329863157,1718771442886,-500.0,0.00013698,2]
[329863160,1718771442896,-500.0,0.00013698,2]
[329863163,1718771442906,-500.0,0.00013698,2]
[329863166,1718771442915,-500.0,0.00013698,2]
[329863169,1718771442925,-500.0,0.00013698,2]
[329863172,1718771442934,-536.74027064,0.00013698,2]
[329863175,1718771442944,-500.0,0.00013698,2]
[329863178,1718771442953,-509.53,0.00013698,2]
[329863181,1718771442962,-500.0,0.00013698,2]
[329863184,1718771442971,-500.0,0.00013698,2]
[329863187,1718771442981,-500.0,0.00013698,2]
[329863190,1718771442990,-501.33,0.00013698,2]
[329863193,1718771443000,-500.0,0.00013698,2]
[329863196,1718771443009,-500.0,0.00013698,2]
[329863199,1718771443019,-996.89,0.00013698,2]
[329863202,1718771443028,-518.32870896,0.00013698,2]
[329863205,1718771443037,-500.0,0.00013698,2]
[329863207,1718771443047,-500.0,0.00013698,2]
[329863241,1718771443379,-1033.92,0.00013698,2]
[329863242,1718771443390,-500.0,0.00013698,2]
[329863243,1718771443404,-653.18,0.00013698,2]
[329863244,1718771443414,-500.0,0.00013698,2]
[329863245,1718771443425,-925.71,0.00013698,2]
[329863246,1718771443441,-500.0,0.00013698,2]
[329863247,1718771443459,-501.89334933,0.00013698,2]
[329863248,1718771443471,-891.31,0.00013698,2]
[329863250,1718771443488,-1521.14,0.00013698,2]
[329863251,1718771443503,-500.0,0.00013698,2]
[329863253,1718771443512,-514.34727658,0.00013698,2]
[329863255,1718771443522,-504.29790642,0.00013698,2]
[329863256,1718771443532,-318.36952817,0.00013698,2]
[329863257,1718771443542,-500.0,0.00013698,2]
[329863260,1718771443552,-500.0,0.00013698,2]
[329863263,1718771443562,-500.0,0.00013698,2]
[329863265,1718771443572,-618.08,0.00013698,2]
[329863267,1718771443581,-500.0,0.00013698,2]
[329863269,1718771443591,-617.92,0.00013698,2]
[329863271,1718771443601,-500.0,0.00013698,2]
[329863272,1718771443612,-1097.6,0.00013698,2]
[329863274,1718771443623,-500.0,0.00013698,2]
[329863275,1718771443635,-539.16,0.00013698,2]
[329863276,1718771443644,-500.0,0.00013698,2]
[329863277,1718771443653,-500.0,0.00013698,2]
[329863278,1718771443662,-500.0,0.00013698,2]
[329863279,1718771443671,-500.0,0.00013698,2]
[329863280,1718771443680,-500.0,0.00013698,2]
[329863281,1718771443689,-811.56,0.00013698,2]
[329863282,1718771443698,-1545.72,0.00013698,2]
[329863283,1718771443707,-1055.2,0.00013698,2]
[329863284,1718771443717,-500.0,0.00013698,2]
[329863285,1718771443727,-500.0,0.00013698,2]
[329863286,1718771443736,-500.0,0.00013698,2]
[329863287,1718771443746,-1528.68,0.00013698,2]
[329863288,1718771443755,-500.0,0.00013698,2]
[329863289,1718771443764,-565.63,0.00013698,2]
[329863290,1718771443773,-500.0,0.00013698,2]
[329863291,1718771443783,-500.0,0.00013698,2]
[329863292,1718771443793,-518.48383473,0.00013698,2]
[329863293,1718771443802,-891.22,0.00013698,2]
[329863294,1718771443812,-727.15,0.00013698,2]
[329863295,1718771443821,-500.0,0.00013698,2]
[329863296,1718771443831,-381.65144883,0.00013698,2]
[329863297,1718771443840,-1302.48,0.00013698,2]
[329863298,1718771443850,-2370.89,0.00013698,2]
[329863299,1718771443859,-500.0,0.00013698,2]
[329863300,1718771443871,-556.47,0.00013698,2]
[329863301,1718771443880,-500.0,0.00013698,2]
[329863302,1718771443890,-500.0,0.00013698,2]
[329863303,1718771443900,-500.0,0.00013698,2]
[329863304,1718771443909,-208.3139665,0.00013698,2]
[329863305,1718771443919,-1453.63,0.00013698,2]
[329863306,1718771443928,-550.82700607,0.00013698,2]
[329863307,1718771443937,-500.0,0.00013698,2]
[329863308,1718771443947,-386.40752803,0.00013698,2]
[329863309,1718771443956,-500.0,0.00013698,2]
[329863310,1718771443965,-2233.58,0.00013698,2]
[329863311,1718771443975,-500.0,0.00013698,2]
[329863312,1718771443984,-500.0,0.00013698,2]
[329863313,1718771443993,-500.0,0.00013698,2]
[329863314,1718771444002,-500.0,0.00013698,2]
[329863315,1718771444012,-736.2,0.00013698,2]
[329863316,1718771444021,-744.92,0.00013698,2]
[329863317,1718771444031,-1022.01,0.00013698,2]
[329863318,1718771444040,-500.0,0.00013698,2]
[329863319,1718771444049,-2835.56,0.00013698,2]
[329863320,1718771444059,-500.0,0.00013698,2]
[329863321,1718771444068,-500.0,0.00013698,2]
[329863322,1718771444077,-500.0,0.00013698,2]
[329863323,1718771444089,-500.0,0.00013698,2]
[329863324,1718771444098,-500.0,0.00013698,2]
[329863325,1718771444108,-641.89,0.00013698,2]
[329863326,1718771444120,-738.09,0.00013698,2]
[329863327,1718771444129,-2162.89,0.00013698,2]
[329863328,1718771444139,-2358.89,0.00013698,2]
[329863329,1718771444148,-1222.31,0.00013698,2]
[329863330,1718771444158,-500.0,0.00013698,2]
[329863331,1718771444167,-500.0,0.00013698,2]
[329863332,1718771444176,-151.0,0.00013698,2]
[329863333,1718771444186,-1473.9,0.00013698,2]
[329863334,1718771444195,-151.0,0.00013698,2]
[329863335,1718771444205,-151.0,0.00013698,2]
[329863336,1718771444215,-151.0,0.00013698,2]
[329863337,1718771444224,-151.0,0.00013698,2]
[329863338,1718771444233,-500.0,0.00013698,2]
[329863339,1718771444243,-1260.64,0.00013698,2]
[329863340,1718771444252,-500.0,0.00013698,2]
[329863341,1718771444263,-500.0,0.00013698,2]
[329863342,1718771444272,-500.0,0.00013698,2]
[329863343,1718771444282,-1288.15,0.00013698,2]
[329863344,1718771444291,-1015.41,0.00013698,2]
[329863345,1718771444301,-865.47,0.00013698,2]
[329863346,1718771444311,-1703.56,0.00013698,2]
[329863347,1718771444320,-1468.62,0.00013698,2]
[329863348,1718771444329,-151.0,0.00013698,2]
[329863349,1718771444339,-151.0,0.00013698,2]
[329863350,1718771444348,-151.0,0.00013698,2]
[329863351,1718771444358,-151.0,0.00013698,2]
[329863352,1718771444370,-151.0,0.00013698,2]
[329863353,1718771444379,-520.2,0.00013698,2]
[329863354,1718771444389,-500.0,0.00013698,2]
[329863355,1718771444398,-500.0,0.00013698,2]
[329863356,1718771444411,-500.0,0.00013698,2]
[329863357,1718771444421,-500.0,0.00013698,2]
[329863358,1718771444431,-2006.44,0.00013698,2]
[329863359,1718771444440,-3188.11,0.00013698,2]
[329863360,1718771444451,-500.0,0.00013698,2]
[329863361,1718771444461,-1891.6,0.00013698,2]
[329863362,1718771444470,-989.51,0.00013698,2]
[329863363,1718771444481,-500.0,0.00013698,2]
[329863364,1718771444490,-1353.08,0.00013698,2]
[329863365,1718771444500,-500.0,0.00013698,2]
[329863366,1718771444510,-500.0,0.00013698,2]
[329863367,1718771444520,-500.0,0.00013698,2]
[329863368,1718771444529,-500.0,0.00013698,2]
[329863369,1718771444539,-501.92079083,0.00013698,2]
[329863370,1718771444549,-1746.67,0.00013698,2]
[329863371,1718771444559,-1180.2,0.00013698,2]
[329863372,1718771444570,-904.08,0.00013698,2]
[329863373,1718771444580,-500.0,0.00013698,2]
[329863374,1718771444590,-500.0,0.00013698,2]
[329863375,1718771444600,-500.0,0.00013698,2]
[329863376,1718771444610,-784.4,0.00013698,2]
[329863377,1718771444620,-533.57633166,0.00013698,2]
[329863378,1718771444630,-500.0,0.00013698,2]
[329863379,1718771444639,-500.0,0.00013698,2]
[329863380,1718771444649,-500.0,0.00013698,2]
[329863381,1718771444659,-500.0,0.00013698,2]
[329863382,1718771444669,-1674.44,0.00013698,2]
[329863383,1718771444679,-500.0,0.00013698,2]